fUSD/lending_fUSD_20240704
["ID","MTS","AMOUNT","RATE_DAILY","PERIOD"]
[331185001,1720126238911,-150.0,0.00013936,2]
[331185002,1720126238921,-150.0,0.00013943,2]
[331185003,1720126238930,-150.0,0.0001395,2]
[331185004,1720126238940,-150.0,0.00013953,2]
[331185005,1720126238949,-150.0,0.00013954,2]
[331185006,1720126238958,-150.0,0.00013955,2]
[331185007,1720126238968,-150.0,0.00013972,2]
[331185008,1720126238977,-10124.1880606,0.00014,2]
[331185009,1720126238990,-7911.35277425,0.00014,2]
[331185013,1720126239014,-621.56021715,0.00014,2]
[331185015,1720126239026,-3033.20517682,0.00014,2]
[331185146,1720126240434,-227.14852012,0.00013543,2]
[331185148,1720126240446,-730.0,0.00014,2]
[331185150,1720126240456,-687.88651031,0.00014,2]
[331185153,1720126240470,-625.34419316,0.00014,2]
[331185155,1720126240482,-2288.09525422,0.00014,2]
[331185157,1720126240493,-504.74498103,0.00014,2]
[331185160,1720126240505,-9243.38499873,0.00014,2]
[331185176,1720126240648,-5277.91856876,0.00014,2]
[331185184,1720126240710,-149790.11133194,0.00014,2]
[331185190,1720126240752,-9072.06453866,0.00014,2]
[331185228,1720126241094,-795.01166931,0.00014,2]
[331185231,1720126241110,-449.3685477,0.00014,2]
[331185234,1720126241138,-72631.35136223,0.00014,2]
[331185454,1720126243235,-407.7744792,0.00014,2]
[331185456,1720126243246,-2295.6112263,0.00014,2]
[331185458,1720126243257,-628011.25647671,0.00014,2]
[331185463,1720126243289,-21436.59238764,0.00014,2]
[331185465,1720126243298,-461.90376345,0.00014,2]
[331185467,1720126243307,-929060.86496756,0.00014,2]
[331185469,1720126243321,-310.0,0.00014,2]
[331185471,1720126243332,-432.0,0.00014,2]
[331185474,1720126243348,-6936.55694516,0.00014,2]
[331185476,1720126243359,-2385.14,0.00014,2]
[331185479,1720126243384,-732.51196725,0.00014,2]
[331185482,1720126243396,-335.55999996,0.00014,2]
[331185484,1720126243407,-3491.09720002,0.00014,2]
[331185486,1720126243419,-2421.6,0.00014,2]
[331185488,1720126243430,-21819.99370451,0.00014,2]
[331185570,1720126244195,-3270.22817816,0.00014,2]
[331185574,1720126244227,-707.3898016,0.00014,2]
[331185783,1720126246309,-1104.77410387,0.00014,2]
[331185790,1720126246369,-781.95199433,0.00014,2]
[331185797,1720126246428,-777.38,0.00014,2]
[331185805,1720126246495,-2347.40223909,0.00014,2]
[331185814,1720126246562,-691.5217741,0.00014,2]
[331185816,1720126246575,-939.883994,0.00014,2]
[331186381,1720126324242,5982.71269753,0.00011199,2]
[331186382,1720126340465,3812.51582818,0.00011199,2]
[331186383,1720126378360,1398.7909551,0.00011199,2]
[331186384,1720126383875,1133.60989333,0.00011199,2]
[331186385,1720126386344,1391.33325677,0.00011199,2]
[331186386,1720126390912,1912.39009214,0.00011199,2]
[331186390,1720126504979,227.14852012,0.00011199,2]
[331186392,1720126592348,-4042.41,0.00012867,2]
[331186393,1720126592371,-169.7,0.00012872,2]
[331186394,1720126592392,-300.0,0.00012874,2]
[331186395,1720126592416,-1000.0,0.00012875,2]
[331186396,1720126592440,-14487.89,0.00012875,2]
[331186398,1720126817568,713.67,0.00010692,2]
[331186399,1720126851443,265.37977912,0.00011199,2]
[331186401,1720126919475,157.070506,0.00025,62]
[331186402,1720126922255,157.070506,0.00025,62]
[331186403,1720126925313,157.070506,0.00025,63]
[331186404,1720126926253,157.070506,0.00025,63]
[331186405,1720126929207,157.070506,0.00025,64]
[331186406,1720126929980,157.070506,0.00025,64]
[331186407,1720126933585,157.070506,0.00025,65]
[331186408,1720126934368,157.070506,0.00025,65]
[331186409,1720126938353,157.070506,0.00025,66]
[331186410,1720126939233,157.070506,0.00025,66]
[331186411,1720126943330,157.070506,0.00025,69]
[331186412,1720126944124,157.070506,0.00025,69]
[331186413,1720126947788,157.070506,0.00025,70]
[331186414,1720126948612,157.070506,0.00025,70]
[331186416,1720126953314,157.070506,0.00025,71]
[331186417,1720126954085,157.070506,0.00025,71]
[331186418,1720126957149,157.070506,0.00025,72]
[331186421,1720127030892,227.14852012,0.00011199,2]
[331186426,1720127351147,677.98,0.00010714,2]
[331186427,1720127432399,-227.14852012,0.00012302,2]
[331186428,1720127432409,-250.0,0.0001259,2]
[331186429,1720127432418,-250.0,0.0001259,2]
[331186430,1720127432427,-150.0,0.000126,2]
[331186431,1720127432436,-800.0,0.00012608,2]
[331186432,1720127432445,-176.55,0.00012608,2]
[331186433,1720127432456,-1007.88,0.00012608,2]
[331186434,1720127432467,-200.0,0.00012611,2]
[331186435,1720127432476,-162.37,0.00012622,2]
[331186436,1720127432485,-300.0,0.00012631,2]
[331186437,1720127432494,-12117.76,0.00012632,2]
[331186438,1720127432506,-156.37,0.00012688,2]
[331186439,1720127432515,-559.0,0.0001287,2]
[331186440,1720127432523,-559.0,0.00012873,2]
[331186441,1720127432533,-690.28,0.00012874,2]
[331186442,1720127432543,-2128.38,0.00012874,2]
[331186443,1720127432552,-3104.9,0.00012874,2]
[331186444,1720127432565,-499.99,0.00012874,2]
[331186445,1720127432574,-559.0,0.00012877,2]
[331186446,1720127432583,-559.0,0.0001288,2]
[331186447,1720127432592,-559.0,0.00012884,2]
[331186448,1720127432601,-559.0,0.00012887,2]
[331186449,1720127432610,-30.09570136,0.0001289,2]
[331186450,1720127432622,-428.32614833,0.0001289,2]
[331186451,1720127432633,-100.57815031,0.0001289,2]
[331186452,1720127432643,-559.0,0.00012894,2]
[331186453,1720127432652,-559.0,0.00012897,2]
[331186454,1720127432662,-559.0,0.00012901,2]
[331186455,1720127432671,-559.0,0.00012904,2]
[331186456,1720127432681,-559.0,0.00012907,2]
[331186457,1720127432691,-559.0,0.00012911,2]
[331186458,1720127432699,-559.0,0.00012914,2]
[331186459,1720127432709,-559.0,0.00012918,2]
[331186461,1720127432718,-559.0,0.00012921,2]
[331186462,1720127432727,-559.0,0.00012924,2]
[331186464,1720127432736,-351.17933077,0.00012928,2]
[331186466,1720127432749,-207.82066923,0.00012928,2]
[331186467,1720127432758,-559.0,0.00012931,2]
[331186468,1720127432767,-559.0,0.00012935,2]
[331186469,1720127432777,-764.4,0.00012974,2]
[331186470,1720127432786,-677.98,0.00012978,2]
[331186471,1720127432795,-226.81,0.00013096,2]
[331186472,1720127432805,-1646.0,0.00013181,2]
[331186473,1720127432814,-627.73,0.00013699,2]
[331186474,1720127432823,-8249.87,0.00013699,2]
[331186475,1720127432832,-724.56,0.00013699,2]
[331186476,1720127432841,-150.0,0.00013734,2]
[331186477,1720127432850,-150.0,0.00013734,2]
[331186478,1720127432859,-150.0,0.00013742,2]
[331186479,1720127432869,-150.0,0.00013747,2]
[331186480,1720127432878,-150.0,0.00013748,2]
[331186481,1720127432888,-150.0,0.00013748,2]
[331186482,1720127432897,-150.0,0.00013749,2]
[331186483,1720127432907,-150.0,0.00013751,2]
[331186484,1720127432916,-150.0,0.00013754,2]
[331186485,1720127432926,-150.0,0.00013758,2]
[331186486,1720127432934,-150.0,0.00013761,2]
[331186487,1720127432944,-150.0,0.00013762,2]
[331186488,1720127432953,-150.0,0.00013766,2]
[331186489,1720127432962,-150.0,0.00013766,2]
[331186490,1720127432971,-150.0,0.00013769,2]
[331186491,1720127432980,-150.0,0.00013769,2]
[331186492,1720127432989,-150.0,0.00013773,2]
[331186493,1720127432999,-150.0,0.00013781,2]
[331186494,1720127433009,-150.0,0.00013785,2]
[331186495,1720127433018,-419.07,0.00013786,2]
[331186496,1720127433027,-419.07,0.00013786,2]
[331186497,1720127433037,-419.07,0.00013786,2]
[331186498,1720127433046,-854.2,0.00013786,2]
[331186499,1720127433055,-150.0,0.00013786,2]
[331186500,1720127433064,-150.0,0.00013786,2]
[331186501,1720127433074,-150.0,0.00013789,2]
[331186502,1720127433083,-150.0,0.00013796,2]
[331186503,1720127433092,-150.0,0.00013798,2]
[331186504,1720127433101,-854.2,0.000138,2]
[331186505,1720127433110,-174.3285366,0.00013803,2]
[331186506,1720127433119,-150.0,0.00013805,2]
[331186507,1720127433128,-150.0,0.0001381,2]
[331186508,1720127433137,-150.0,0.00013815,2]
[331186509,1720127433146,-150.0,0.00013815,2]
[331186510,1720127433155,-150.0,0.00013816,2]
[331186511,1720127433164,-150.0,0.00013819,2]
[331186512,1720127433173,-150.0,0.00013825,2]
[331186513,1720127433182,-150.0,0.00013834,2]
[331186514,1720127433191,-150.0,0.00013835,2]
[331186515,1720127433200,-150.0,0.00013846,2]
[331186516,1720127433209,-150.0,0.00013848,2]
[331186517,1720127433218,-150.0,0.00013849,2]
[331186518,1720127433227,-150.0,0.00013851,2]
[331186519,1720127433236,-150.0,0.00013852,2]
[331186520,1720127433245,-150.0,0.00013854,2]
[331186521,1720127433258,-150.0,0.00013855,2]
[331186522,1720127433267,-150.0,0.00013855,2]
[331186523,1720127433276,-150.0,0.00013856,2]
[331186524,1720127433285,-420.0,0.00013857,2]
[331186525,1720127433294,-150.0,0.00013861,2]
[331186526,1720127433303,-150.0,0.00013862,2]
[331186527,1720127433312,-150.0,0.00013862,2]
[331186528,1720127433321,-150.0,0.00013869,2]
[331186529,1720127433331,-150.0,0.00013869,2]
[331186530,1720127433340,-300.0,0.00013871,2]
[331186531,1720127433350,-150.0,0.00013874,2]
[331186532,1720127433359,-150.0,0.00013874,2]
[331186533,1720127433368,-150.0,0.00013883,2]
[331186534,1720127433377,-500.0,0.00013888,2]
[331186535,1720127433386,-200.0,0.00013888,2]
[331186536,1720127433395,-150.0,0.00013889,2]
[331186537,1720127433404,-220.15,0.0001389,3]
[331186538,1720127433413,-150.0,0.00013897,2]
[331186539,1720127433422,-315.6806,0.000139,2]
[331186540,1720127433431,-1000.0,0.000139,2]
[331186541,1720127433440,-1280.97,0.000139,2]
[331186542,1720127433449,-5126.0387,0.000139,2]
[331186543,1720127433463,-177.5368,0.000139,2]
[331186544,1720127433472,-5759.49227788,0.000139,2]
[331186545,1720127433485,-17313.92082212,0.000139,2]
[331186546,1720127433494,-3404.5372,0.000139,2]
[331186547,1720127433507,-602.7287,0.000139,2]
[331186548,1720127433516,-278.97872743,0.000139,2]
[331186549,1720127433525,-615.5753,0.000139,2]
[331186550,1720127433534,-187.74629942,0.000139,2]
[331186551,1720127433546,-1000.0,0.000139,2]
[331186552,1720127433556,-17789.50173594,0.000139,2]
[331186553,1720127433566,-1524.65430679,0.000139,2]
[331186554,1720127433576,-2452.73602928,0.000139,2]
[331186555,1720127433585,-366.4392262,0.000139,2]
[331186556,1720127433594,-334.2066385,0.000139,2]
[331186557,1720127433602,-603.47080836,0.000139,2]
[331186558,1720127433612,-150.0,0.00013901,2]
[331186559,1720127433621,-150.0,0.00013904,2]
[331186560,1720127433630,-661.0,0.00013906,2]
[331186561,1720127433639,-150.0,0.00013906,2]
[331186562,1720127433648,-150.0,0.00013917,2]
[331186563,1720127433658,-150.0,0.00013918,2]
[331186564,1720127433668,-150.0,0.00013919,2]
[331186565,1720127433677,-150.0,0.00013922,2]
[331186566,1720127433687,-150.0,0.00013928,2]
[331186567,1720127433697,-150.0,0.00013929,2]
[331186568,1720127433706,-150.0,0.0001393,2]
[331186569,1720127433715,-150.0,0.00013931,2]
[331186570,1720127433725,-150.0,0.00013933,2]
[331186571,1720127433734,-150.0,0.00013936,2]
[331186572,1720127433743,-150.0,0.00013941,2]
[331186573,1720127433754,-150.0,0.00013944,2]
[331186574,1720127433764,-150.0,0.00013949,2]
[331186575,1720127433773,-150.0,0.00013952,2]
[331186576,1720127433783,-150.0,0.00013962,2]
[331186577,1720127433792,-150.0,0.00013969,2]
[331186578,1720127433801,-150.0,0.00013976,2]
[331186579,1720127433811,-150.0,0.00013986,2]
[331186580,1720127433820,-150.0,0.00013986,2]
[331186581,1720127433829,-150.0,0.00013987,2]
[331186582,1720127433838,-150.0,0.00013989,2]
[331186583,1720127433847,-195.23152178,0.0001399,2]
[331186584,1720127433856,-195.23152178,0.0001399,2]
[331186585,1720127433866,-150.0,0.00013992,2]
[331186586,1720127433876,-150.0,0.00013993,2]
[331186587,1720127433885,-150.0,0.00013994,2]
[331186588,1720127433895,-150.0,0.00013998,2]
[331186589,1720127433904,-1015.76737933,0.00013999,2]
[331186590,1720127433913,-150.0,0.00013999,2]
[331186591,1720127433922,-1679814.99383558,0.00014,2]
[331186592,1720127433934,-328.33,0.00014,2]
[331186593,1720127433952,-3955.96712328,0.00014,2]
[331186594,1720127433963,-352067.15318634,0.00014,2]
[331186595,1720127433974,-3411.11018416,0.00014,2]
[331186596,1720127433997,-1010.84700863,0.00014,2]
[331186597,1720127434009,-445.559063,0.00014,2]
[331186598,1720127438390,-263.09172603,0.00014,2]
[331186599,1720127438478,-181536.0765904,0.00014,2]
[331186600,1720127438553,-30286.63931483,0.00014,2]
[331186601,1720127438566,-26718.03744393,0.00014,2]
[331186602,1720127438578,-350.598,0.00014,2]
[331186604,1720127438760,-19200.17667964,0.00014,2]
[331186606,1720127438772,-10100.7667169,0.00014,2]
[331186771,1720127440637,-3939.31742732,0.00014,2]
[331186774,1720127440649,-6087.35,0.00014,2]
[331186801,1720127440902,-503.35534763,0.00014,2]
[331186803,1720127440913,-548.94403522,0.00014,2]
[331186805,1720127440925,-676.65434901,0.00014,2]
[331186808,1720127440937,-615.7468987,0.00014,2]
[331186815,1720127440999,-241556.32809519,0.00014,2]
[331187162,1720127444269,-79431.64948535,0.00014,2]
[331187164,1720127444279,-1006.00125693,0.00014,2]
[331187166,1720127444288,-187038.0,0.00014,2]
[331187167,1720127444297,-590.14181459,0.00014,2]
[331187169,1720127444306,-200.0,0.00014,2]
[331187171,1720127444315,-679.0,0.00014,2]
[331187173,1720127444324,-359066.46391984,0.00014,2]
[331187174,1720127444335,-616.45468681,0.00014,2]
[331187176,1720127444346,-976.20732012,0.00014,2]
[331187376,1720127446603,-2301.10079766,0.00014,2]
[331187389,1720127446722,-573.43013765,0.00014,2]
[331187400,1720127446812,-605.67764587,0.00014,2]
[331188304,1720127483357,500.0,0.00011199,2]
[331188305,1720127483678,679.0,0.00011199,2]
[331188307,1720127651317,155.0,0.00011199,2]
[331188308,1720127655136,586.21021824,0.00011199,2]
[331188315,1720127984411,637.65,0.00011039,2]
[331188326,1720128142366,155.0,0.00011199,2]
[331188342,1720128294741,796.60001883,0.00026,120]
[331188360,1720128368929,296.94055061,0.00011199,2]
[331188770,1720128409042,548.05944939,0.00011199,2]
[331188771,1720128409063,533.01126164,0.00011199,2]
[331188772,1720128409094,1748.42762844,0.00011199,2]
[331188885,1720128489116,-453.03592788,0.00031619,30]
[331188886,1720128489141,-191.0,0.00031619,30]
[331188887,1720128489167,-448.79454404,0.00031619,90]
[331188888,1720128489192,-482.65087287,0.00031619,30]
[331188889,1720128489218,-360.72140026,0.00031619,30]
[331188890,1720128489243,-698.26316902,0.00031619,30]
[331188891,1720128489270,-323.37029164,0.00031619,120]
[331188892,1720128489294,-197.27303334,0.00031619,30]
[331188893,1720128489318,-195.7438441,0.00031619,30]
[331188894,1720128489345,-608.2448189,0.00031619,31]
[331188895,1720128489369,-332.80423913,0.00031619,30]
[331188896,1720128489394,-160.59243381,0.00031619,30]
[331188897,1720128489419,-500.0,0.00031619,30]
[331188898,1720128489444,-519.21876425,0.00031619,120]
[331188899,1720128489469,-616.2066441,0.00031619,120]
[331188900,1720128489499,-270.21281213,0.00031619,120]
[331188901,1720128489522,-189.51077167,0.00031619,30]
[331188902,1720128489552,-607.00443594,0.00031619,120]
[331188903,1720128489576,-348.6084056,0.00031619,120]
[331188904,1720128489599,-307.05517166,0.00031619,30]
[331188905,1720128489623,-618.82141915,0.00031619,120]
[331188906,1720128489648,-213.97887261,0.00031619,120]
[331188907,1720128489675,-208.68148623,0.00031619,120]
[331188908,1720128489699,-192.89412006,0.00031619,30]
[331188909,1720128489724,-157.20061304,0.00031619,30]
[331188910,1720128490009,-631.57397338,0.00031619,120]
[331188911,1720128490034,-426.61917363,0.00031619,30]
[331188912,1720128490058,-176.63356897,0.00031619,120]
[331188913,1720128490081,-252.65295432,0.00031619,30]
[331188914,1720128490106,-340.27967973,0.00031619,30]
[331188915,1720128490130,-162.14062734,0.00031619,120]
[331188916,1720128490154,-552.11533741,0.00031619,120]
[331188917,1720128490179,-285.99174087,0.00031619,30]
[331188918,1720128490203,-539.71052311,0.00031619,120]
[331188919,1720128490226,-436.45664747,0.00031619,30]
[331188920,1720128490252,-266.0,0.00031619,30]
[331188921,1720128490276,-545.24126167,0.00031619,120]
[331188922,1720128490300,-1511.0,0.00031619,120]
[331188923,1720128490329,-2000.0,0.00031619,30]
[331188924,1720128490354,-2000.0,0.00031619,30]
[331188925,1720128490379,-853.65797939,0.00031619,30]
[331188926,1720128490406,-1288.0,0.00031619,30]
[331188927,1720128490430,-1855.0,0.00031619,30]
[331188928,1720128490457,-2013.8,0.00031619,30]
[331188929,1720128490481,-1906.29,0.00031619,35]
[331188930,1720128490506,-314.79079453,0.00031619,30]
[331188931,1720128490529,-515.0,0.00031619,30]
[331188932,1720128490553,-2000.0,0.00031619,30]
[331188933,1720128490575,-2000.0,0.00031619,30]
[331188934,1720128490598,-2000.0,0.00031619,30]
[331188935,1720128490621,-2000.0,0.00031619,30]
[331188936,1720128490645,-1044.6,0.00031619,30]
[331188937,1720128490672,-10000.0,0.00031619,30]
[331188938,1720128490701,-982.0,0.00031619,30]
[331188939,1720128490725,-5000.0,0.00031619,120]
[331188940,1720128490748,-1000.0,0.00031619,30]
[331188941,1720128490772,-2000.0,0.00031619,30]
[331188942,1720128490796,-2579.0,0.00031619,30]
[331188943,1720128490823,-2117.199999,0.00031619,30]
[331188944,1720128490848,-2000.0,0.00031619,30]
[331188945,1720128490871,-2000.0,0.00031619,30]
[331188946,1720128490897,-688.0,0.00031619,120]
[331188947,1720128490921,-5100.0,0.00031619,33]
[331188948,1720128490945,-738.54773623,0.00031619,120]
[331188949,1720128490969,-191.0,0.00031619,30]
[331188950,1720128490994,-99888.009999,0.00031619,30]
[331188951,1720128491017,-154.016502,0.00031619,30]
[331188952,1720128491040,-154.016502,0.00031619,30]
[331188953,1720128491063,-150.0,0.00031619,30]
[331188954,1720128498875,500.0,0.00031619,30]
[331188955,1720128499294,500.0,0.00031619,30]
[331188956,1720128499720,500.0,0.00031619,30]
[331188957,1720128500154,500.0,0.00031619,30]
[331188958,1720128500585,500.0,0.00031619,30]
[331188959,1720128500983,500.0,0.00031619,30]
[331188960,1720128501423,500.0,0.00031619,30]
[331188961,1720128501884,500.0,0.00031619,30]
[331188962,1720128502288,500.0,0.00031619,30]
[331188968,1720128586078,605.76,0.00010994,2]
[331188970,1720128632984,-250.0,0.00012903,2]
[331188971,1720128632994,-250.0,0.00012903,2]
[331188972,1720128633006,-640.0,0.00012907,2]
[331188973,1720128633017,-181.45,0.00012908,2]
[331188975,1720128633026,-300.0,0.00012909,2]
[331188977,1720128633037,-22680.55,0.0001291,2]
[331188979,1720128633047,-360.0,0.00012941,2]
[331188981,1720128633056,-605.76,0.00013257,2]
[331188982,1720128633068,-6359.20792655,0.00013326,2]
[331188984,1720128633125,-3557.07657346,0.00013326,2]
[331188985,1720128633139,-6620.62630741,0.00013326,2]
[331188986,1720128633149,-1884.27285191,0.00013326,2]
[331188987,1720128633159,-296.64726033,0.00013472,2]
[331188988,1720128633168,-620.10900742,0.00013483,2]
[331188989,1720128633178,-502.18,0.00013699,2]
[331188990,1720128633187,-564.07,0.00013699,2]
[331188991,1720128633197,-1255.09457293,0.00013699,2]
[331188992,1720128633209,-1592.32542707,0.00013699,2]
[331188993,1720128633218,-500.0,0.00013699,2]
[331188994,1720128633228,-150.0,0.00013743,2]
[331188995,1720128633237,-3427.34724927,0.0001379,2]
[331188996,1720128633295,-7646.98285621,0.0001379,2]
[331188997,1720128633307,-633.6425639,0.0001379,2]
[331189028,1720128638020,-393.96057768,0.0001379,2]
[331189029,1720128638034,-787.37675294,0.0001379,2]
[331189030,1720128638044,-150.0,0.00013813,2]
[331189031,1720128638054,-499.99,0.00013813,2]
[331189032,1720128638064,-150.0,0.00013826,2]
[331189033,1720128638074,-7928.27019147,0.00013829,2]
[331189034,1720128638085,-404.64145571,0.00013829,2]
[331189037,1720128638097,-616.38,0.00013829,2]
[331189039,1720128638109,-2536.09896173,0.00013829,2]
[331189041,1720128638120,-4055.65106181,0.00013829,2]
[331189043,1720128638131,-150.0,0.00013832,2]
[331189045,1720128638140,-150.0,0.00013842,2]
[331189047,1720128638150,-1340.45,0.00013849,2]
[331189049,1720128638160,-150.0,0.0001385,2]
[331189051,1720128638170,-620.10900743,0.00013878,2]
[331189053,1720128638180,-528.5,0.00013885,2]
[331189055,1720128638190,-528.5,0.00013885,2]
[331189057,1720128638199,-500.0,0.00013888,2]
[331189059,1720128638209,-200.0,0.00013888,2]
[331189061,1720128638218,-150.0,0.0001389,2]
[331189063,1720128638228,-150.0,0.00013897,2]
[331189065,1720128638237,-150.0,0.00013898,2]
[331189067,1720128638247,-227.14852012,0.00013899,2]
[331189069,1720128638257,-416.32,0.000139,2]
[331189071,1720128638266,-528.5,0.000139,2]
[331189073,1720128638276,-1103.86686941,0.000139,2]
[331189075,1720128638288,-230.20564904,0.000139,2]
[331189077,1720128638297,-150.0,0.000139,2]
[331189079,1720128638309,-354.88,0.000139,2]
[331189081,1720128638319,-150.0,0.000139,2]
[331189083,1720128638329,-164.87,0.000139,2]
[331189085,1720128638338,-150.0,0.000139,2]
[331189087,1720128638348,-150.0,0.000139,2]
[331189089,1720128638358,-837.78,0.000139,2]
[331189091,1720128638367,-354.88,0.000139,2]
[331189093,1720128638377,-164.87,0.000139,2]
[331189095,1720128638386,-150.0,0.00013906,2]
[331189097,1720128638395,-150.0,0.00013907,2]
[331189099,1720128638405,-150.0,0.00013915,2]
[331189101,1720128638414,-150.0,0.00013919,2]
[331189103,1720128638424,-150.0,0.0001394,2]
[331189105,1720128638433,-150.0,0.00013946,2]
[331189107,1720128638443,-888.8809435,0.00013964,2]
[331189109,1720128638452,-164.87,0.00013965,2]
[331189111,1720128638462,-150.0,0.00013965,2]
[331189113,1720128638471,-424.37,0.00013965,2]
[331189116,1720128638482,-1024.05,0.00013973,3]
[331189118,1720128638491,-300.0,0.00013978,2]
[331189119,1720128638501,-150.0,0.00013978,2]
[331189121,1720128638510,-150.0,0.00013978,2]
[331189124,1720128638519,-150.0,0.00013991,2]
[331189125,1720128638529,-380.19442756,0.00013999,2]
[331189127,1720128638538,-421.46658745,0.00013999,2]
[331189130,1720128638548,-37383.86273077,0.00014,2]
[331189132,1720128638560,-1443.26152,0.00014,2]
[331189134,1720128638572,-24341.63434138,0.00014,2]
[331189139,1720128638606,-1180.03888899,0.00014,2]
[331189141,1720128638618,-2931.87895,0.00014,2]
[331189143,1720128638630,-688.35,0.00014,2]
[331189145,1720128638642,-2366.07284405,0.00014,2]
[331189147,1720128638653,-179675.55612394,0.00014,2]
[331189152,1720128638687,-4186.27582778,0.00014,2]
[331189259,1720128639863,-2435.38767799,0.00014,2]
[331189570,1720128642797,-1835.51102729,0.00014,2]
[331189574,1720128642809,-258.26659757,0.00014,2]
[331189580,1720128642832,-772.1299993,0.00014,2]
[331189584,1720128642849,-716.30002,0.00014,2]
[331189590,1720128642862,-602.25885382,0.00014,2]
[331189595,1720128642873,-296.13443335,0.00014,2]
[331189599,1720128642885,-461.730365,0.00014,2]
[331189602,1720128642896,-115672.98585555,0.00014,2]
[331189605,1720128642907,-668.90836217,0.00014,2]
[331189609,1720128642920,-1028.443,0.00014,2]
[331189617,1720128642960,-605.70812265,0.00014,2]
[331189620,1720128642971,-1301.90749695,0.00014,2]
[331189622,1720128642982,-2776.36303042,0.00014,2]
[331189624,1720128642993,-8955.59627251,0.00014,2]
[331189626,1720128643005,-1511.16591522,0.00014,2]
[331189629,1720128643024,-324.82200539,0.00014,2]
[331189631,1720128643037,-36443.5,0.00014,2]
[331189633,1720128643048,-2093.79820878,0.00014,2]
[331189635,1720128643059,-7021.27211264,0.00014,2]
[331189638,1720128643071,-450.0,0.00014,2]
[331189640,1720128643083,-494.38399997,0.00014,2]
[331189642,1720128643094,-7916.00000007,0.00014,2]
[331189644,1720128643104,-11420.11102734,0.00014,2]
[331189646,1720128643116,-3468.12070833,0.00014,2]
[331189649,1720128643128,-4445.23740939,0.00014,2]
[331189651,1720128643140,-3950.40628861,0.00014,2]
[331189653,1720128643151,-16860.2388468,0.00014,2]
[331189655,1720128643163,-1050.66990547,0.00014,2]
[331189713,1720128643648,-901.46094364,0.00014,2]
[331189717,1720128643772,-773.95903373,0.00014,2]
[331189731,1720128643901,-738.7893376,0.00014,2]
[331189733,1720128643913,-1053.98522685,0.00014,2]
[331189735,1720128643926,-764.83570451,0.00014,2]
[331189738,1720128643938,-348.04079335,0.00014,2]
[331189740,1720128643949,-21320.5176462,0.00014,2]
[331189742,1720128643960,-581.12339648,0.00014,2]
[331189744,1720128643972,-19902.19440343,0.00014,2]
[331189747,1720128643982,-485.29999995,0.00014,2]
[331189749,1720128643994,-946.83999999,0.00014,2]
[331189751,1720128644005,-866.09290291,0.00014,2]
[331189753,1720128644018,-747.85523931,0.00014,2]
[331189755,1720128644029,-2813.12587195,0.00014,2]
[331189758,1720128644040,-1098.83817205,0.00014,2]
[331189760,1720128644052,-3310.30765838,0.00014,2]
[331189762,1720128644064,-30756.22282231,0.00014,2]
[331189764,1720128644075,-10813.14,0.00014,2]
[331189767,1720128644086,-600.42032532,0.00014,2]
[331189769,1720128644097,-145536.80039106,0.00014,2]
[331189771,1720128644106,-461.90376345,0.00014,2]
[331189773,1720128644115,-155.0,0.00014,2]